fUSD/lending_fUSD_20250504
["ID","MTS","AMOUNT","RATE_DAILY","PERIOD"]
[359788786,1746349816199,-218.48434508,0.00019973,2]
[359788787,1746349816222,-500.0,0.00019973,2]
[359788788,1746349816244,-166.46271639,0.00019973,2]
[359788789,1746349816267,-501.28867129,0.00019973,2]
[359788790,1746349816289,-500.0,0.00019973,2]
[359788791,1746349816312,-500.0,0.00019973,2]
[359788792,1746349816334,-502.11203944,0.00019973,2]
[359788793,1746349816361,-500.0,0.00019973,2]
[359788794,1746349816384,-507.66507455,0.00019973,2]
[359788795,1746349816405,-501.01492276,0.00019973,2]
[359788796,1746349816429,-510.52264706,0.00019973,2]
[359788797,1746349816451,-510.48703464,0.00019973,2]
[359788798,1746349816473,-303.11281089,0.00019973,2]
[359788799,1746349816495,-161.06774323,0.00019973,2]
[359788800,1746349816517,-161.57998144,0.00019973,2]
[359788801,1746349816540,-500.0,0.00019973,2]
[359788802,1746349816564,-500.0,0.00019973,2]
[359788803,1746349816587,-500.0,0.00019973,2]
[359788804,1746349816609,-306.55821,0.00019973,2]
[359788805,1746349816632,-306.55821,0.00019973,2]
[359788806,1746349816655,-1360.617322,0.00019973,2]
[359788807,1746349816677,-1360.617322,0.00019973,2]
[359788808,1746349816701,-371.177366,0.00019973,2]
[359788809,1746349816724,-371.177366,0.00019973,2]
[359788810,1746349816747,-151.0,0.00019973,2]
[359788811,1746349816770,-151.0,0.00019973,2]
[359788812,1746349816793,-537.509439,0.00019973,2]
[359788813,1746349816815,-537.509439,0.00019973,2]
[359788814,1746349816838,-151.0,0.00019973,2]
[359788815,1746349816861,-151.0,0.00019973,2]
[359788816,1746349816883,-1140.0,0.00019978,2]
[359788817,1746349816905,-815.677,0.00019982,2]
[359788818,1746349816929,-168.470085,0.00019982,2]
[359788819,1746349816959,-151.0,0.00019982,2]
[359788820,1746349816988,-417.291219,0.00019982,2]
[359788821,1746349817011,-417.291219,0.00019982,2]
[359788822,1746349817034,-450.0,0.00019983,2]
[359788823,1746349817057,-151.0,0.00019983,2]
[359788824,1746349817079,-258.32864,0.00019983,2]
[359788825,1746349817102,-155.668623,0.00019983,2]
[359788826,1746349817126,-151.0,0.00019983,2]
[359788827,1746349817148,-237.314922,0.00019983,2]
[359788828,1746349817175,-237.314922,0.00019983,2]
[359788829,1746349817198,-249.025905,0.00019983,2]
[359788830,1746349817220,-249.025905,0.00019983,2]
[359788831,1746349817243,-450.0,0.00019983,2]
[359788832,1746349817265,-219.967762,0.00019983,2]
[359788833,1746349817287,-219.967762,0.00019983,2]
[359788834,1746349817309,-450.0,0.00019983,2]
[359788835,1746349817332,-311.07,0.00019983,2]
[359788836,1746349817362,-584.02,0.00019983,2]
[359788837,1746349817385,-405.49,0.00019983,2]
[359788838,1746349817407,-151.0,0.00019983,2]
[359788839,1746349817432,-450.0,0.00019983,2]
[359788840,1746349817456,-450.0,0.00019983,2]
[359788841,1746349817479,-450.0,0.00019983,2]
[359788842,1746349817502,-450.0,0.00019983,2]
[359788843,1746349817524,-152.398009,0.00019983,2]
[359788844,1746349817547,-151.0,0.00019983,2]
[359788845,1746349817570,-151.0,0.00019983,2]
[359788846,1746349817594,-151.0,0.00019983,2]
[359788847,1746349817616,-450.0,0.00019983,2]
[359788848,1746349817639,-450.0,0.00019983,2]
[359788849,1746349817662,-166.963181,0.00019983,2]
[359788850,1746349817685,-166.963181,0.00019983,2]
[359788851,1746349817883,-151.0,0.00019983,2]
[359788852,1746349817907,-151.0,0.00019983,2]
[359788853,1746349817930,-343.09669203,0.00019983,2]
[359788854,1746349817953,-151.0,0.00019983,2]
[359788855,1746349817976,-207.201716,0.00019983,2]
[359788856,1746349817998,-521.21268345,0.00019983,2]
[359788857,1746349818021,-450.0,0.00019983,2]
[359788858,1746349818045,-151.0,0.00019983,2]
[359788859,1746349818068,-581.514003,0.00019983,2]
[359788860,1746349818092,-581.514003,0.00019983,2]
[359788861,1746349818115,-209.566834,0.00019983,2]
[359788862,1746349818137,-209.566834,0.00019983,2]
[359788863,1746349818160,-168.401741,0.00019983,2]
[359788864,1746349818183,-209.566834,0.00019983,2]
[359788865,1746349818207,-209.566834,0.00019983,2]
[359788866,1746349818229,-450.0,0.00019983,2]
[359788867,1746349818252,-450.0,0.00019983,2]
[359788868,1746349818275,-151.0,0.00019983,2]
[359788869,1746349818296,-151.0,0.00019983,2]
[359788870,1746349818319,-452.91126572,0.00019983,2]
[359788871,1746349818345,-222.04331515,0.00019983,2]
[359788872,1746349818369,-306.55821,0.00019983,2]
[359788873,1746349818393,-306.55821,0.00019983,2]
[359788874,1746349818418,-306.55821,0.00019983,2]
[359788875,1746349818442,-306.55821,0.00019983,2]
[359788876,1746349818472,-306.55821,0.00019983,2]
[359788877,1746349818495,-306.55821,0.00019983,2]
[359788878,1746349818518,-450.0,0.00019983,2]
[359788879,1746349818542,-450.0,0.00019983,2]
[359788880,1746349818565,-3190.67,0.00019983,2]
[359788881,1746349818588,-1360.617322,0.00019983,2]
[359788882,1746349818610,-1360.617322,0.00019983,2]
[359788883,1746349818633,-1360.617322,0.00019983,2]
[359788884,1746349818656,-450.0,0.00019983,2]
[359788885,1746349818679,-722.58,0.00019983,2]
[359788886,1746349818701,-1360.617322,0.00019983,2]
[359788887,1746349818725,-1360.617322,0.00019983,2]
[359788888,1746349818748,-1360.617322,0.00019983,2]
[359788889,1746349818774,-3108.92,0.00019983,2]
[359788890,1746349818799,-155.6,0.00019983,2]
[359788891,1746349818823,-450.0,0.00019983,2]
[359788892,1746349818846,-450.0,0.00019983,2]
[359788893,1746349818868,-2161.34,0.00019983,2]
[359788894,1746349818892,-450.0,0.00019983,2]
[359788895,1746349818914,-371.177366,0.00019983,2]
[359788896,1746349818937,-371.177366,0.00019983,2]
[359788897,1746349818960,-371.177366,0.00019983,2]
[359788898,1746349818984,-503.94,0.00019983,2]
[359788899,1746349819006,-371.177366,0.00019983,2]
[359788900,1746349819029,-450.0,0.00019983,2]
[359788901,1746349819052,-371.177366,0.00019983,2]
[359788902,1746349819077,-371.177366,0.00019983,2]
[359788903,1746349819099,-450.0,0.00019983,2]
[359788904,1746349819122,-417.291219,0.00019983,2]
[359788905,1746349819147,-417.291219,0.00019983,2]
[359788906,1746349819172,-417.291219,0.00019983,2]
[359788907,1746349819195,-417.291219,0.00019983,2]
[359788908,1746349819219,-417.291219,0.00019983,2]
[359788909,1746349819243,-417.291219,0.00019983,2]
[359788910,1746349819266,-47649.17,0.00019983,2]
[359788911,1746349819288,-818.52,0.00019983,2]
[359788912,1746349819313,-450.0,0.00019983,2]
[359788913,1746349819336,-450.0,0.00019983,2]
[359788914,1746349819364,-2464.62,0.00019983,2]
[359788915,1746349819387,-11966.0,0.00019983,2]
[359788916,1746349819410,-450.0,0.00019983,2]
[359788917,1746349819434,-758.07,0.00019983,2]
[359788918,1746349819457,-450.0,0.00019983,2]
[359788919,1746349819480,-6542.63,0.00019983,2]
[359788920,1746349819503,-450.0,0.00019983,2]
[359788921,1746349819527,-450.0,0.00019983,2]
[359788922,1746349819549,-450.0,0.00019983,2]
[359788923,1746349819573,-450.0,0.00019983,2]
[359788924,1746349819597,-1189.61347,0.00019983,2]
[359788925,1746349819622,-1189.61347,0.00019983,2]
[359788926,1746349819645,-1189.61347,0.00019983,2]
[359788927,1746349819669,-1189.61347,0.00019983,2]
[359788928,1746349819693,-1189.61347,0.00019983,2]
[359788929,1746349819717,-1189.613465,0.00019983,2]
[359788930,1746349819740,-573.26,0.00019983,2]
[359788931,1746349819764,-450.0,0.00019983,2]
[359788932,1746349819786,-458.31435468,0.00019983,2]
[359788933,1746349819809,-468.24600428,0.00019983,2]
[359788934,1746349819832,-450.0,0.00019983,2]
[359788935,1746349819855,-450.0,0.00019983,2]
[359788936,1746349819877,-450.0,0.00019983,2]
[359788937,1746349819899,-469.07484194,0.00019983,2]
[359788938,1746349819921,-450.0,0.00019983,2]
[359788939,1746349819945,-535.27,0.00019983,2]
[359788940,1746349819971,-450.0,0.00019983,2]
[359788941,1746349819994,-859.45,0.00019983,2]
[359788942,1746349820016,-473.19419739,0.00019983,2]
[359788943,1746349820038,-450.0,0.00019983,2]
[359788944,1746349820060,-450.0,0.00019983,2]
[359788945,1746349820083,-450.0,0.00019983,2]
[359788946,1746349820105,-463.04982356,0.00019983,2]
[359788947,1746349820129,-453.01,0.00019983,2]
[359788948,1746349820152,-463.11328155,0.00019983,2]
[359788949,1746349820174,-507.0375767,0.00019983,2]
[359788950,1746349820196,-481.17984611,0.00019983,2]
[359788951,1746349820219,-450.0,0.00019983,2]
[359788952,1746349820244,-492.36730397,0.00019983,2]
[359788953,1746349820267,-450.0,0.00019983,2]
[359788954,1746349820290,-151.0,0.00019983,2]
[359788955,1746349820312,-464.52398384,0.00019983,2]
[359788956,1746349820335,-454.02143579,0.00019983,2]
[359788957,1746349820359,-151.0,0.00019983,2]
[359788958,1746349820382,-151.0,0.00019983,2]
[359788959,1746349820406,-427.720176,0.00019983,2]
[359788960,1746349820431,-427.720176,0.00019983,2]
[359788961,1746349820455,-538.56,0.00019983,2]
[359788962,1746349820477,-483.00209009,0.00019983,2]
[359788963,1746349820500,-427.720176,0.00019983,2]
[359788964,1746349820522,-833.843969,0.00019983,2]
[359788965,1746349820545,-461.40746727,0.00019983,2]
[359788966,1746349820568,-264.69455,0.00019983,2]
[359788967,1746349820591,-833.843969,0.00019983,2]
[359788968,1746349820614,-833.843969,0.00019983,2]
[359788969,1746349820637,-427.720176,0.00019983,2]
[359788970,1746349820660,-427.720176,0.00019983,2]
[359788971,1746349820682,-427.72018,0.00019983,2]
[359788972,1746349820708,-833.843969,0.00019983,2]
[359788973,1746349820731,-450.0,0.00019983,2]
[359788974,1746349820753,-833.843969,0.00019983,2]
[359788975,1746349820776,-833.843962,0.00019983,2]
[359788976,1746349820799,-450.0,0.00019983,2]
[359788977,1746349820821,-463.00788141,0.00019983,2]
[359788978,1746349820846,-515.59,0.00019983,2]
[359788979,1746349820869,-450.0,0.00019983,2]
[359788980,1746349820892,-455.75033078,0.00019983,2]
[359788981,1746349820915,-589.85,0.00019983,2]
[359788982,1746349820940,-450.0,0.00019983,2]
[359788983,1746349820963,-554.55511953,0.00019983,2]
[359788984,1746349820986,-537.509439,0.00019983,2]
[359788985,1746349821010,-537.509439,0.00019983,2]
[359788986,1746349821032,-450.0,0.00019983,2]
[359788987,1746349821054,-450.0,0.00019983,2]
[359788988,1746349821077,-537.509439,0.00019983,2]
[359788989,1746349821100,-537.509433,0.00019983,2]
[359788990,1746349821122,-209.400088,0.00019983,2]
[359788991,1746349821145,-209.400088,0.00019983,2]
[359788992,1746349821167,-209.400088,0.00019983,2]
[359788993,1746349821192,-578.82,0.00019983,2]
[359788994,1746349821214,-156.103878,0.00019983,2]
[359788995,1746349821237,-450.0,0.00019983,2]
[359788996,1746349821261,-156.103878,0.00019983,2]
[359788997,1746349821285,-156.103878,0.00019983,2]
[359788998,1746349821309,-151.0,0.00019983,2]
[359788999,1746349821332,-151.0,0.00019983,2]
[359789000,1746349821356,-209.400088,0.00019983,2]
[359789001,1746349821380,-209.400088,0.00019983,2]
[359789002,1746349821404,-209.400095,0.00019983,2]
[359789003,1746349821426,-156.103878,0.00019983,2]
[359789004,1746349821451,-462.87838353,0.00019983,2]
[359789005,1746349821473,-156.103878,0.00019983,2]
[359789006,1746349821497,-156.103874,0.00019983,2]
[359789007,1746349821520,-459.36240091,0.00019983,2]
[359789008,1746349821543,-174.04412,0.00019983,2]
[359789009,1746349821566,-1185.0,0.00019983,2]
[359789010,1746349821589,-154.62024,0.00019984,2]
[359789011,1746349821611,-151.0,0.00019984,2]
[359789012,1746349821634,-151.0,0.00019984,2]
[359789013,1746349821656,-450.0,0.00019984,2]
[359789014,1746349821679,-549.01,0.00019984,2]
[359789015,1746349821703,-237.314922,0.00019984,2]
[359789016,1746349821726,-237.314922,0.00019984,2]
[359789017,1746349821748,-237.314922,0.00019984,2]
[359789018,1746349821771,-237.314922,0.00019984,2]
[359789019,1746349821793,-450.0,0.00019984,2]
[359789020,1746349821817,-450.0,0.00019984,2]
[359789021,1746349821839,-249.025905,0.00019984,2]
[359789022,1746349821862,-249.025905,0.00019984,2]
[359789023,1746349821886,-249.025905,0.00019984,2]
[359789024,1746349821909,-249.025905,0.00019984,2]
[359789025,1746349821932,-450.0,0.00019984,2]
[359789026,1746349821956,-219.967762,0.00019984,2]
[359789027,1746349821978,-219.967762,0.00019984,2]
[359789028,1746349822001,-450.0,0.00019984,2]
[359789029,1746349822023,-219.967762,0.00019984,2]
[359789030,1746349822224,-219.967762,0.00019984,2]
[359789031,1746349822249,-450.0,0.00019984,2]
[359789032,1746349822273,-450.0,0.00019984,2]
[359789033,1746349822296,-450.0,0.00019984,2]
[359789034,1746349822319,-537.29,0.00019984,2]
[359789035,1746349822344,-450.0,0.00019984,2]
[359789036,1746349822367,-450.0,0.00019984,2]
[359789037,1746349822392,-450.0,0.00019984,2]
[359789038,1746349822416,-450.0,0.00019984,2]
[359789039,1746349822439,-686.9,0.00019984,2]
[359789040,1746349822464,-450.0,0.00019984,2]
[359789041,1746349822486,-450.0,0.00019984,2]
[359789042,1746349822509,-151.0,0.00019984,2]
[359789043,1746349822533,-255.288366,0.00019984,2]
[359789044,1746349822556,-450.0,0.00019984,2]
[359789045,1746349822581,-450.0,0.00019984,2]
[359789046,1746349822606,-450.0,0.00019984,2]
[359789047,1746349822629,-1258.76,0.00019984,2]
[359789048,1746349822652,-538.23,0.00019984,2]
[359789049,1746349822676,-151.0,0.00019984,2]
[359789050,1746349822701,-242.69434,0.00019984,2]
[359789051,1746349822724,-284.459273,0.00019984,2]
[359789052,1746349822747,-1107.1,0.00019984,2]
[359789053,1746349822770,-166.963181,0.00019984,2]
[359789054,1746349822793,-166.963181,0.00019984,2]
[359789055,1746349822815,-166.963181,0.00019984,2]
[359789056,1746349822838,-166.963181,0.00019984,2]
[359789057,1746349822860,-166.963181,0.00019984,2]
[359789058,1746349822883,-166.963181,0.00019984,2]
[359789059,1746349822905,-151.0,0.00019984,2]
[359789060,1746349822927,-151.0,0.00019984,2]
[359789061,1746349822950,-151.0,0.00019984,2]
[359789062,1746349822972,-151.0,0.00019984,2]
[359789063,1746349822995,-151.0,0.00019984,2]
[359789064,1746349823018,-151.0,0.00019984,2]
[359789065,1746349823041,-151.0,0.00019984,2]
[359789066,1746349823063,-151.0,0.00019984,2]
[359789067,1746349823086,-151.0,0.00019984,2]
[359789068,1746349823109,-581.514003,0.00019984,2]
[359789069,1746349823131,-581.514003,0.00019984,2]
[359789070,1746349823154,-581.514003,0.00019984,2]
[359789071,1746349823177,-581.514003,0.00019984,2]
[359789072,1746349823200,-581.514003,0.00019984,2]
[359789073,1746349823222,-581.514,0.00019984,2]
[359789074,1746349823244,-209.566834,0.00019984,2]
[359789075,1746349823267,-209.566834,0.00019984,2]
[359789076,1746349823290,-209.566834,0.00019984,2]
[359789077,1746349823313,-209.566834,0.00019984,2]
[359789078,1746349823337,-151.0,0.00019984,2]
[359789079,1746349823364,-151.0,0.00019984,2]
[359789080,1746349823389,-306.55821,0.00019984,2]
[359789081,1746349823413,-306.55821,0.00019984,2]
[359789082,1746349823439,-306.55821,0.00019984,2]
[359789083,1746349823463,-306.55821,0.00019984,2]
[359789084,1746349823485,-1360.617322,0.00019984,2]
[359789085,1746349823509,-1360.617322,0.00019984,2]
[359789086,1746349823533,-1360.617322,0.00019984,2]
[359789087,1746349823557,-1360.617322,0.00019984,2]
[359789088,1746349823580,-371.177366,0.00019984,2]
[359789089,1746349823604,-371.177366,0.00019984,2]
[359789090,1746349823628,-371.177366,0.00019984,2]
[359789091,1746349823653,-371.177366,0.00019984,2]
[359789092,1746349823676,-105949.5536891,0.00019984,2]
[359789093,1746349823700,-417.291219,0.00019984,2]
[359789094,1746349823724,-417.291219,0.00019984,2]
[359789095,1746349823747,-4927.3382997,0.00019984,2]
[359789096,1746349823772,-500.0,0.00019984,2]
[359789097,1746349823794,-200.5831331,0.00019984,2]
[359789098,1746349823818,-500.0,0.00019984,2]
[359789099,1746349823840,-151.0,0.00019984,2]
[359789100,1746349823863,-150.0,0.00019984,2]
[359789101,1746349823886,-151.0,0.00019984,2]
[359789102,1746349823909,-150.0,0.00019984,2]
[359789103,1746349823932,-150.0,0.00019984,2]
[359789104,1746349823956,-450.0,0.00019985,2]
[359789105,1746349823979,-450.0,0.00019985,2]
[359789106,1746349824002,-450.0,0.00019985,2]
[359789107,1746349824025,-450.0,0.00019985,2]
[359789108,1746349824047,-153.217094,0.00019985,2]
[359789109,1746349824070,-151.0,0.00019985,2]
[359789110,1746349824093,-151.0,0.00019985,2]
[359789111,1746349824116,-773.89,0.00019985,2]
[359789112,1746349824139,-450.0,0.00019985,2]
[359789113,1746349824162,-196.012362,0.00019985,2]
[359789114,1746349824184,-196.012362,0.00019985,2]
[359789115,1746349824207,-151.0,0.00019985,2]
[359789116,1746349824229,-450.0,0.00019985,2]
[359789117,1746349824251,-160.29228,0.00019985,2]
[359789118,1746349824273,-200.0,0.00019985,2]
[359789119,1746349824295,-196.012362,0.00019985,2]
[359789120,1746349824318,-196.012362,0.00019985,2]
[359789121,1746349824345,-450.0,0.00019985,2]
[359789122,1746349824370,-343.008802,0.00019985,2]
[359789123,1746349824394,-343.008802,0.00019985,2]
[359789124,1746349824417,-343.008802,0.00019985,2]
[359789125,1746349824443,-343.008802,0.00019985,2]
[359789126,1746349824467,-450.0,0.00019985,2]
[359789127,1746349824490,-601.29,0.00019985,2]
[359789128,1746349824515,-192.271919,0.00019985,2]
[359789129,1746349824538,-151.0,0.00019985,2]
[359789130,1746349824563,-152.282913,0.00019985,2]
[359789131,1746349824586,-206.579673,0.00019985,2]
[359789132,1746349824609,-151.0,0.00019985,2]
[359789133,1746349824632,-450.0,0.00019985,2]
[359789134,1746349824655,-151.0,0.00019985,2]
[359789135,1746349824678,-151.0,0.00019985,2]
[359789136,1746349824701,-215.786363,0.00019985,2]
[359789137,1746349824724,-482.49,0.00019985,2]
[359789138,1746349824747,-450.0,0.00019985,2]
[359789139,1746349824770,-151.0,0.00019985,2]
[359789140,1746349824793,-151.0,0.00019985,2]
[359789141,1746349824816,-151.0,0.00019985,2]
[359789142,1746349824839,-151.0,0.00019985,2]
[359789143,1746349824862,-1337.91,0.00019985,2]
[359789144,1746349824885,-450.0,0.00019985,2]
[359789145,1746349824908,-450.0,0.00019985,2]
[359789146,1746349824933,-783.23,0.00019985,2]
[359789147,1746349824957,-668.66,0.00019985,2]
[359789148,1746349824980,-450.0,0.00019985,2]
[359789149,1746349825004,-450.0,0.00019985,2]
[359789150,1746349825026,-151.0,0.00019985,2]
[359789151,1746349825048,-151.0,0.00019985,2]
[359789152,1746349825071,-151.0,0.00019985,2]
[359789153,1746349825094,-151.0,0.00019985,2]
[359789154,1746349825116,-201.362979,0.00019985,2]
[359789155,1746349825138,-151.0,0.00019985,2]
[359789156,1746349825160,-151.0,0.00019985,2]
[359789157,1746349825182,-237.314922,0.00019985,2]
[359789158,1746349825204,-237.314922,0.00019985,2]
[359789159,1746349825225,-237.314922,0.00019985,2]
[359789160,1746349825247,-237.314922,0.00019985,2]
[359789161,1746349825269,-237.314922,0.00019985,2]
[359789162,1746349825291,-237.314922,0.00019985,2]
[359789163,1746349825314,-249.025905,0.00019985,2]
[359789164,1746349825341,-249.025905,0.00019985,2]
[359789165,1746349825370,-249.025905,0.00019985,2]
[359789166,1746349825392,-249.025905,0.00019985,2]
[359789167,1746349825415,-249.025905,0.00019985,2]
[359789168,1746349825438,-249.025905,0.00019985,2]
[359789169,1746349825461,-219.967762,0.00019985,2]
[359789170,1746349825483,-219.967762,0.00019985,2]
[359789171,1746349825506,-219.967762,0.00019985,2]
[359789172,1746349825529,-219.967762,0.00019985,2]
[359789173,1746349825552,-219.967762,0.00019985,2]
[359789174,1746349825575,-219.967762,0.00019985,2]
[359789175,1746349825598,-154.668666,0.00019985,2]
[359789176,1746349825621,-154.668666,0.00019985,2]
[359789177,1746349825644,-154.668666,0.00019985,2]
[359789178,1746349825667,-154.668666,0.00019985,2]
[359789179,1746349825690,-166.963181,0.00019985,2]
[359789180,1746349825713,-166.963181,0.00019985,2]
[359789181,1746349825737,-166.963181,0.00019985,2]
[359789182,1746349825761,-166.963186,0.00019985,2]
[359789183,1746349825784,-151.0,0.00019985,2]
[359789184,1746349825808,-151.0,0.00019985,2]
[359789185,1746349825834,-151.0,0.00019985,2]
[359789186,1746349825860,-209.566834,0.00019985,2]
[359789187,1746349825887,-209.566841,0.00019985,2]
[359789188,1746349825912,-151.0,0.00019985,2]
[359789189,1746349825935,-306.55821,0.00019985,2]
[359789190,1746349825958,-306.558211,0.00019985,2]
[359789191,1746349825982,-1360.617322,0.00019985,2]
[359789192,1746349826006,-1360.617324,0.00019985,2]
[359789193,1746349826028,-371.177366,0.00019985,2]
[359789194,1746349826051,-371.177359,0.00019985,2]
[359789195,1746349826075,-417.291219,0.00019985,2]
[359789196,1746349826099,-417.291219,0.00019985,2]
[359789197,1746349826124,-417.291219,0.00019985,2]
[359789198,1746349826148,-417.291222,0.00019985,2]
[359789199,1746349826171,-151.0,0.00019985,2]
[359789200,1746349826193,-151.0,0.00019986,2]
[359789201,1746349826216,-196.012362,0.00019986,2]
[359789202,1746349826239,-196.012362,0.00019986,2]
[359789203,1746349826267,-343.008802,0.00019986,2]
[359789204,1746349826291,-343.008802,0.00019986,2]
[359789205,1746349826315,-151.0,0.00019986,2]
[359789206,1746349826338,-151.0,0.00019986,2]
[359789207,1746349826364,-151.0,0.00019986,2]
[359789208,1746349826586,-151.0,0.00019986,2]
[359789209,1746349826610,-151.0,0.00019986,2]
[359789210,1746349826634,-151.0,0.00019986,2]
[359789211,1746349826658,-151.0,0.00019986,2]
[359789212,1746349826681,-151.0,0.00019986,2]
[359789213,1746349826705,-151.0,0.00019986,2]
[359789214,1746349826728,-151.0,0.00019986,2]
[359789215,1746349826751,-237.314922,0.00019986,2]
[359789216,1746349826774,-237.314922,0.00019986,2]
[359789217,1746349826797,-249.025905,0.00019986,2]
[359789218,1746349826829,-249.025905,0.00019986,2]
[359789219,1746349826857,-219.967762,0.00019986,2]
[359789220,1746349826882,-219.967762,0.00019986,2]
[359789221,1746349826907,-154.668666,0.00019986,2]
[359789222,1746349826934,-154.668666,0.00019986,2]
[359789223,1746349826960,-154.668666,0.00019986,2]
[359789224,1746349826987,-154.668666,0.00019986,2]
[359789225,1746349827012,-4665.019755,0.00019986,2]
[359789226,1746349827036,-93754.7902445,0.00019986,2]
[359789227,1746349827061,-81560.0268,0.00019986,2]
[359789228,1746349827085,-69365.2633554,0.00019986,2]
[359789229,1746349827110,-4360.2030652,0.00019986,2]
[359789230,1746349827134,-3793.0678307,0.00019986,2]
[359789231,1746349827158,-3225.9325962,0.00019986,2]
[359789232,1746349827182,-151.0,0.00019998,2]
[359789233,1746349827205,-196.012362,0.00019998,2]
[359789234,1746349827230,-196.012362,0.00019998,2]
[359789235,1746349827257,-343.008802,0.00019998,2]
[359789236,1746349827283,-343.008802,0.00019998,2]
[359789237,1746349827307,-151.0,0.00019998,2]
[359789238,1746349827331,-151.0,0.00019998,2]
[359789239,1746349827357,-151.0,0.00019998,2]
[359789240,1746349827381,-151.0,0.00019998,2]
[359789241,1746349827411,-151.0,0.00019998,2]
[359789242,1746349827435,-237.314922,0.00019998,2]
[359789243,1746349827460,-237.314922,0.00019998,2]
[359789244,1746349827484,-249.025905,0.00019998,2]
[359789245,1746349827508,-249.025905,0.00019998,2]
[359789246,1746349827533,-219.967762,0.00019998,2]
[359789247,1746349827558,-219.967762,0.00019998,2]
[359789248,1746349827584,-154.668666,0.00019998,2]
[359789249,1746349827609,-154.668666,0.00019998,2]
[359789250,1746349827636,-242.0,0.00019998,2]
[359789251,1746349827661,-150.0,0.00019998,2]
[359789252,1746349827686,-189.59,0.00019998,2]
[359789253,1746349827709,-167.182,0.00019998,2]
[359789254,1746349827734,-250.183,0.00019998,2]
[359789255,1746349827758,-242.632,0.00019998,2]
[359789256,1746349827782,-156.427,0.00019998,2]
[359789257,1746349827805,-153.937,0.00019998,2]
[359789258,1746349827829,-253.434,0.00019998,2]
[359789259,1746349827853,-245.67,0.00019998,2]
[359789260,1746349827878,-182.714,0.00019998,2]
[359789261,1746349827903,-259.898,0.00019998,2]
[359789262,1746349827929,-202.977,0.00019998,2]
[359789263,1746349827954,-154.163,0.00019998,2]
[359789264,1746349827982,-153.0,0.00019998,2]
[359789265,1746349828007,-4010.0,0.00019998,2]
[359789266,1746349828033,-500.0,0.00019999,2]
[359789267,1746349828065,-337.95812922,0.00019999,2]
[359789268,1746349828090,-500.0,0.00019999,2]
[359789269,1746349828116,-500.0,0.00019999,2]
[359789270,1746349828143,-500.0,0.00019999,2]
[359789271,1746349828168,-500.0,0.00019999,2]
[359789272,1746349828193,-500.0,0.00019999,2]
[359789273,1746349828218,-500.0,0.00019999,2]
[359789274,1746349828242,-11039.40926765,0.00019999,2]
[359789275,1746349828269,-458.97,0.00019999,2]
[359789276,1746349828295,-500.0,0.00019999,2]
[359789277,1746349828320,-184.31751442,0.00019999,2]
[359789278,1746349828354,-500.0,0.00019999,2]
[359789279,1746349828380,-500.0,0.00019999,2]
[359789280,1746349828407,-500.0,0.00019999,2]
[359789281,1746349828434,-500.0,0.00019999,2]
[359789282,1746349828461,-483121.43331312,0.0002,2]
[359789283,1746349829386,797.02,0.00019,2]
[359789284,1746349829681,797.02,0.00019,2]
[359789285,1746349830425,797.02,0.00019,2]